[Event "Titled Tuesday Blitz December 14 2021"]
[White "Koellner, Ruben Gideon"]
[Black "Hakemi, Arman"]
[WhiteFideId "12993093"]
[BlackFideId "22520805"]
[WhiteElo "2577"]
[BlackElo "2208"]
[Result "1-0"]
[Round "06"]
[TimeControl "180+1"]
[Date "2021.12.15"]
[WhiteClock "0:00:16"]
[BlackClock "0:00:07"]

1. d4 {[%clk 0:03:00]}  Nf6 {[%clk 0:03:00]} 2. Bg5 {[%clk 0:02:59]}  Ne4 {[%clk 0:02:59]} 3. Bf4 {[%clk 0:02:58]}  d5 {[%clk 0:02:59]} 4. e3 {[%clk 0:02:58]}  c5 {[%clk 0:02:59]} 5. Bd3 {[%clk 0:02:58]}  cxd4 {[%clk 0:02:59]} 6. Bxe4 {[%clk 0:02:57]}  dxe4 {[%clk 0:03:00]} 7. exd4 {[%clk 0:02:58]}  Nc6 {[%clk 0:02:59]} 8. Ne2 {[%clk 0:02:57]}  Bg4 {[%clk 0:02:58]} 9. Nbc3 {[%clk 0:02:57]}  e6 {[%clk 0:02:01]} 10. Qd2 {[%clk 0:02:46]}  Bb4 {[%clk 0:01:57]} 11. O-O {[%clk 0:02:26]}  Bxe2 {[%clk 0:01:53]} 12. Qxe2 {[%clk 0:02:26]}  Bxc3 {[%clk 0:01:20]} 13. bxc3 {[%clk 0:02:24]}  f5 {[%clk 0:01:21]} 14. Rab1 {[%clk 0:02:16]}  Qd7 {[%clk 0:01:15]} 15. Rfd1 {[%clk 0:02:14]}  O-O {[%clk 0:01:14]} 16. Qb5 {[%clk 0:02:11]}  b6 {[%clk 0:01:13]} 17. d5 {[%clk 0:02:00]}  exd5 {[%clk 0:01:13]} 18. Rxd5 {[%clk 0:02:01]}  Qc8 {[%clk 0:01:11]} 19. Qc4 {[%clk 0:01:53]}  Kh8 {[%clk 0:01:09]} 20. Rbd1 {[%clk 0:01:47]}  Na5 {[%clk 0:00:53]} 21. Qd4 {[%clk 0:01:46]}  Nc6 {[%clk 0:00:49]} 22. Qa4 {[%clk 0:01:45]}  Ne7 {[%clk 0:00:48]} 23. Rd7 {[%clk 0:01:43]}  Ng6 {[%clk 0:00:48]} 24. Be3 {[%clk 0:01:38]}  Rg8 {[%clk 0:00:43]} 25. Qd4 {[%clk 0:01:33]}  f4 {[%clk 0:00:37]} 26. Bc1 {[%clk 0:01:30]}  Qe8 {[%clk 0:00:35]} 27. c4 {[%clk 0:01:26]}  Qe6 {[%clk 0:00:33]} 28. Bb2 {[%clk 0:01:25]}  Rae8 {[%clk 0:00:21]} 29. Rxg7 {[%clk 0:01:23]}  Ne5 {[%clk 0:00:22]} 30. Rxg8+ {[%clk 0:01:15]}  Kxg8 {[%clk 0:00:23]} 31. Qxe5 {[%clk 0:01:03]}  Qxe5 {[%clk 0:00:23]} 32. Bxe5 {[%clk 0:01:04]}  Rxe5 {[%clk 0:00:24]} 33. Rd8+ {[%clk 0:01:04]}  Kf7 {[%clk 0:00:23]} 34. Rd7+ {[%clk 0:01:05]}  Kg6 {[%clk 0:00:21]} 35. Rxa7 {[%clk 0:01:04]}  Rc5 {[%clk 0:00:20]} 36. Ra6 {[%clk 0:00:59]}  Rxc4 {[%clk 0:00:20]} 37. Rxb6+ {[%clk 0:00:59]}  Kf5 {[%clk 0:00:21]} 38. Rb5+ {[%clk 0:00:58]}  Kg4 {[%clk 0:00:20]} 39. h3+ {[%clk 0:00:58]}  Kh4 {[%clk 0:00:21]} 40. Rf5 {[%clk 0:00:48]}  e3 {[%clk 0:00:21]} 41. fxe3 {[%clk 0:00:39]}  fxe3 {[%clk 0:00:22]} 42. Re5 {[%clk 0:00:31]}  Rxc2 {[%clk 0:00:22]} 43. a4 {[%clk 0:00:30]}  e2 {[%clk 0:00:17]} 44. Kh2 {[%clk 0:00:27]}  e1=Q {[%clk 0:00:10]} 45. Rxe1 {[%clk 0:00:28]}  Ra2 {[%clk 0:00:11]} 46. Re5 {[%clk 0:00:26]}  h5 {[%clk 0:00:10]} 47. Re4+ {[%clk 0:00:19]}  Kg5 {[%clk 0:00:10]} 48. Rb4 {[%clk 0:00:19]}  Kf5 {[%clk 0:00:07]} 49. Rb5+ {[%clk 0:00:17]}  Kg6 {[%clk 0:00:08]} 50. a5 {[%clk 0:00:18]}  Ra3 {[%clk 0:00:06]} 51. Rb6+ {[%clk 0:00:17]}  Kg5 {[%clk 0:00:07]} 52. Rb5+ {[%clk 0:00:18]}  Kh4 {[%clk 0:00:07]} 53. g3+ {[%clk 0:00:16]} 1-0


[Site "https://www.chess.com"]

[Event "Titled Tuesday Blitz December 14 2021"]
[White "Le, Tuan Minh"]
[Black "Acor, Corey"]
[WhiteFideId "12401153"]
[BlackFideId "2024861"]
[WhiteElo "2450"]
[BlackElo "2303"]
[Result "1-0"]
[Round "06"]
[TimeControl "180+1"]
[Date "2021.12.14"]
[WhiteClock "0:01:31"]
[BlackClock "0:00:09"]

1. d4 {[%clk 0:03:00]}  Nf6 {[%clk 0:02:59]} 2. Nf3 {[%clk 0:02:59]}  d5 {[%clk 0:02:55]} 3. Bf4 {[%clk 0:02:59]}  e6 {[%clk 0:02:54]} 4. e3 {[%clk 0:02:59]}  Bd6 {[%clk 0:02:54]} 5. Nbd2 {[%clk 0:02:59]}  c5 {[%clk 0:02:51]} 6. c3 {[%clk 0:02:58]}  Nc6 {[%clk 0:02:51]} 7. Bg3 {[%clk 0:02:57]}  Qe7 {[%clk 0:02:50]} 8. Bb5 {[%clk 0:02:57]}  O-O {[%clk 0:02:49]} 9. Bxc6 {[%clk 0:02:57]}  bxc6 {[%clk 0:02:50]} 10. Qa4 {[%clk 0:02:58]}  cxd4 {[%clk 0:02:49]} 11. cxd4 {[%clk 0:02:58]}  c5 {[%clk 0:02:47]} 12. Bxd6 {[%clk 0:02:58]}  Qxd6 {[%clk 0:02:47]} 13. Qa3 {[%clk 0:02:58]}  Nd7 {[%clk 0:02:17]} 14. Rc1 {[%clk 0:02:57]}  e5 {[%clk 0:02:10]} 15. dxc5 {[%clk 0:02:37]}  Qc6 {[%clk 0:02:06]} 16. O-O {[%clk 0:02:37]}  a5 {[%clk 0:01:58]} 17. Rfd1 {[%clk 0:02:37]}  Bb7 {[%clk 0:01:56]} 18. Qc3 {[%clk 0:02:32]}  f6 {[%clk 0:01:55]} 19. Nb3 {[%clk 0:02:24]}  Qa6 {[%clk 0:01:04]} 20. c6 {[%clk 0:02:08]}  Rac8 {[%clk 0:01:03]} 21. Nxa5 {[%clk 0:02:04]}  Ba8 {[%clk 0:00:37]} 22. Rxd5 {[%clk 0:02:02]}  Nb6 {[%clk 0:00:36]} 23. Rdd1 {[%clk 0:01:53]}  Kh8 {[%clk 0:00:37]} 24. b4 {[%clk 0:01:53]}  Na4 {[%clk 0:00:31]} 25. Qb3 {[%clk 0:01:49]}  Nb6 {[%clk 0:00:16]} 26. h3 {[%clk 0:01:48]}  Rc7 {[%clk 0:00:14]} 27. Nh4 {[%clk 0:01:46]}  Rfc8 {[%clk 0:00:15]} 28. Nf5 {[%clk 0:01:44]}  g6 {[%clk 0:00:13]} 29. Nd6 {[%clk 0:01:44]}  Rf8 {[%clk 0:00:11]} 30. Qe6 {[%clk 0:01:42]}  Nc8 {[%clk 0:00:09]} 31. Nxc8 {[%clk 0:01:31]}  Qxc8 {[%clk 0:00:08]} 32. Qxc8 {[%clk 0:01:31]}  Rcxc8 {[%clk 0:00:09]} 33. b5 {[%clk 0:01:31]} 1-0


[Site "https://www.chess.com"]

[Event "Titled Tuesday Blitz December 14 2021"]
[White "Maksimenko, Viktor"]
[Black "Ibarra Jerez, Jose Carlos"]
[WhiteFideId "13710478"]
[BlackFideId "2226332"]
[WhiteElo "2269"]
[BlackElo "2626"]
[Result "0-1"]
[Round "06"]
[TimeControl "180+1"]
[Date "2021.12.14"]
[WhiteClock "0:01:34"]
[BlackClock "0:01:19"]

1. d4 {[%clk 0:03:00]}  Nf6 {[%clk 0:02:59]} 2. c4 {[%clk 0:03:01]}  d6 {[%clk 0:02:59]} 3. Nc3 {[%clk 0:03:00]}  e5 {[%clk 0:02:59]} 4. Nf3 {[%clk 0:02:59]}  e4 {[%clk 0:03:00]} 5. Ng5 {[%clk 0:02:58]}  Qe7 {[%clk 0:02:59]} 6. Qc2 {[%clk 0:02:58]}  Bf5 {[%clk 0:02:59]} 7. f3 {[%clk 0:02:55]}  Nc6 {[%clk 0:02:58]} 8. e3 {[%clk 0:02:50]}  Nxd4 {[%clk 0:02:51]} 9. Qa4+ {[%clk 0:02:30]}  Nc6 {[%clk 0:02:50]} 10. g4 {[%clk 0:02:26]}  Bd7 {[%clk 0:02:22]} 11. Ngxe4 {[%clk 0:02:18]}  Nxe4 {[%clk 0:02:22]} 12. Nxe4 {[%clk 0:02:19]}  Ne5 {[%clk 0:02:16]} 13. Qd1 {[%clk 0:02:17]}  Nxg4 {[%clk 0:02:15]} 14. Bd2 {[%clk 0:01:55]}  Bc6 {[%clk 0:01:59]} 15. Qe2 {[%clk 0:01:43]}  Bxe4 {[%clk 0:01:51]} 16. fxe4 {[%clk 0:01:44]}  Qh4+ {[%clk 0:01:50]} 17. Kd1 {[%clk 0:01:44]}  Nf2+ {[%clk 0:01:50]} 18. Kc2 {[%clk 0:01:45]}  Nxh1 {[%clk 0:01:50]} 19. Bg2 {[%clk 0:01:45]}  Nf2 {[%clk 0:01:47]} 20. Be1 {[%clk 0:01:44]}  Be7 {[%clk 0:01:30]} 21. Bxf2 {[%clk 0:01:42]}  Qxh2 {[%clk 0:01:28]} 22. Bf3 {[%clk 0:01:39]}  Bh4 {[%clk 0:01:19]} 23. Bxh4 {[%clk 0:01:34]}  Qxh4 {[%clk 0:01:19]} 0-1


[Site "https://www.chess.com"]

[Event "Titled Tuesday Blitz December 14 2021"]
[White "Martinez Alcantara, Jose Eduardo"]
[Black "Belous, Vladimir"]
[WhiteFideId "3805662"]
[BlackFideId "4174003"]
[WhiteElo "2690"]
[BlackElo "2510"]
[Result "1-0"]
[Round "06"]
[TimeControl "180+1"]
[Date "2021.12.14"]
[WhiteClock "0:00:15"]
[BlackClock "0:00:05"]

1. e4 {[%clk 0:03:00]}  c5 {[%clk 0:02:58]} 2. Nf3 {[%clk 0:03:01]}  Nc6 {[%clk 0:02:58]} 3. c3 {[%clk 0:03:01]}  Nf6 {[%clk 0:02:58]} 4. Bd3 {[%clk 0:03:01]}  g6 {[%clk 0:02:54]} 5. O-O {[%clk 0:03:00]}  Bg7 {[%clk 0:02:54]} 6. Bc2 {[%clk 0:03:00]}  O-O {[%clk 0:02:48]} 7. h3 {[%clk 0:02:59]}  d6 {[%clk 0:02:44]} 8. Re1 {[%clk 0:02:57]}  e5 {[%clk 0:02:42]} 9. d3 {[%clk 0:02:57]}  d5 {[%clk 0:02:38]} 10. Nbd2 {[%clk 0:02:56]}  h6 {[%clk 0:02:36]} 11. Ba4 {[%clk 0:02:48]}  Re8 {[%clk 0:02:25]} 12. a3 {[%clk 0:02:41]}  Bd7 {[%clk 0:02:18]} 13. b4 {[%clk 0:02:37]}  b6 {[%clk 0:01:36]} 14. Nf1 {[%clk 0:02:02]}  d4 {[%clk 0:01:23]} 15. c4 {[%clk 0:01:46]}  cxb4 {[%clk 0:01:12]} 16. Bxc6 {[%clk 0:01:46]}  Bxc6 {[%clk 0:01:13]} 17. axb4 {[%clk 0:01:47]}  b5 {[%clk 0:01:10]} 18. c5 {[%clk 0:01:39]}  Nh5 {[%clk 0:01:00]} 19. g3 {[%clk 0:01:21]}  f5 {[%clk 0:00:50]} 20. Nh4 {[%clk 0:01:01]}  fxe4 {[%clk 0:00:39]} 21. dxe4 {[%clk 0:01:02]}  Kh7 {[%clk 0:00:38]} 22. Nxg6 {[%clk 0:00:55]}  Kxg6 {[%clk 0:00:26]} 23. Qg4+ {[%clk 0:00:55]}  Kh7 {[%clk 0:00:27]} 24. Qxh5 {[%clk 0:00:55]}  Qf6 {[%clk 0:00:26]} 25. g4 {[%clk 0:00:37]}  Rf8 {[%clk 0:00:24]} 26. Qf5+ {[%clk 0:00:37]}  Qxf5 {[%clk 0:00:15]} 27. gxf5 {[%clk 0:00:38]}  Bb7 {[%clk 0:00:14]} 28. Nh2 {[%clk 0:00:33]}  h5 {[%clk 0:00:13]} 29. Nf3 {[%clk 0:00:33]}  Bf6 {[%clk 0:00:13]} 30. Bg5 {[%clk 0:00:30]}  Kg7 {[%clk 0:00:09]} 31. Kh2 {[%clk 0:00:28]}  Kf7 {[%clk 0:00:08]} 32. h4 {[%clk 0:00:26]}  Rfc8 {[%clk 0:00:08]} 33. Ra5 {[%clk 0:00:18]}  a6 {[%clk 0:00:08]} 34. Nd2 {[%clk 0:00:17]}  Rc7 {[%clk 0:00:08]} 35. Rg1 {[%clk 0:00:16]}  Rac8 {[%clk 0:00:06]} 36. Bxf6 {[%clk 0:00:16]}  Kxf6 {[%clk 0:00:07]} 37. Rg6+ {[%clk 0:00:16]}  Kf7 {[%clk 0:00:07]} 38. Nf3 {[%clk 0:00:16]}  Re8 {[%clk 0:00:06]} 39. Ng5+ {[%clk 0:00:16]}  Ke7 {[%clk 0:00:07]} 40. Rg7+ {[%clk 0:00:14]}  Kd8 {[%clk 0:00:07]} 41. Ne6+ {[%clk 0:00:13]}  Rxe6 {[%clk 0:00:08]} 42. Rxc7 {[%clk 0:00:13]}  Kxc7 {[%clk 0:00:06]} 43. fxe6 {[%clk 0:00:14]}  Bxe4 {[%clk 0:00:06]} 44. Rxa6 {[%clk 0:00:14]}  d3 {[%clk 0:00:07]} 45. Rd6 {[%clk 0:00:15]}  Bg6 {[%clk 0:00:05]} 46. e7 {[%clk 0:00:15]}  e4 {[%clk 0:00:05]} 47. Rxg6 {[%clk 0:00:14]}  d2 {[%clk 0:00:05]} 48. e8=Q {[%clk 0:00:15]} 1-0


[Site "https://www.chess.com"]

[Event "Titled Tuesday Blitz December 14 2021"]
[White "Mickiewicz, Piotr"]
[Black "Stanisz, Patryk"]
[WhiteFideId "1114891"]
[BlackFideId "1123106"]
[WhiteElo "2266"]
[BlackElo "1978"]
[Result "1/2-1/2"]
[Round "06"]
[TimeControl "180+1"]
[Date "2021.12.15"]
[WhiteClock "0:00:06"]
[BlackClock "0:00:04"]

1. e4 {[%clk 0:03:00]}  c5 {[%clk 0:02:56]} 2. Nf3 {[%clk 0:02:59]}  Nc6 {[%clk 0:02:56]} 3. d4 {[%clk 0:02:59]}  cxd4 {[%clk 0:02:57]} 4. Nxd4 {[%clk 0:03:00]}  Nf6 {[%clk 0:02:57]} 5. Nc3 {[%clk 0:02:58]}  e5 {[%clk 0:02:58]} 6. Ndb5 {[%clk 0:02:58]}  d6 {[%clk 0:02:58]} 7. Bg5 {[%clk 0:02:55]}  a6 {[%clk 0:02:58]} 8. Na3 {[%clk 0:02:54]}  b5 {[%clk 0:02:59]} 9. Nd5 {[%clk 0:02:54]}  Qa5+ {[%clk 0:02:58]} 10. Bd2 {[%clk 0:02:46]}  Qd8 {[%clk 0:02:58]} 11. c4 {[%clk 0:02:37]}  Nxe4 {[%clk 0:02:57]} 12. cxb5 {[%clk 0:02:23]}  Nd4 {[%clk 0:02:57]} 13. b6 {[%clk 0:01:51]}  Bb7 {[%clk 0:01:09]} 14. Nc7+ {[%clk 0:01:49]}  Ke7 {[%clk 0:01:09]} 15. Nxa8 {[%clk 0:01:14]}  Bxa8 {[%clk 0:01:08]} 16. f3 {[%clk 0:01:08]}  Nxd2 {[%clk 0:01:01]} 17. Qxd2 {[%clk 0:01:09]}  Qxb6 {[%clk 0:01:01]} 18. Nc4 {[%clk 0:01:00]}  Qb7 {[%clk 0:01:00]} 19. Bd3 {[%clk 0:00:46]}  f5 {[%clk 0:01:00]} 20. O-O {[%clk 0:00:44]}  Kf7 {[%clk 0:00:57]} 21. Rac1 {[%clk 0:00:37]}  Be7 {[%clk 0:00:57]} 22. Ne3 {[%clk 0:00:34]}  g6 {[%clk 0:00:55]} 23. Bc4+ {[%clk 0:00:33]}  Kg7 {[%clk 0:00:54]} 24. Bd5 {[%clk 0:00:33]}  Qb6 {[%clk 0:00:54]} 25. Bxa8 {[%clk 0:00:33]}  Rxa8 {[%clk 0:00:55]} 26. Kh1 {[%clk 0:00:30]}  Bg5 {[%clk 0:00:53]} 27. Qf2 {[%clk 0:00:24]}  Rb8 {[%clk 0:00:48]} 28. b3 {[%clk 0:00:21]}  Ne6 {[%clk 0:00:46]} 29. Rc3 {[%clk 0:00:18]}  Qd4 {[%clk 0:00:24]} 30. Nd1 {[%clk 0:00:17]}  Qb4 {[%clk 0:00:17]} 31. Qe2 {[%clk 0:00:13]}  Nd4 {[%clk 0:00:15]} 32. Qc4 {[%clk 0:00:12]}  Qb7 {[%clk 0:00:15]} 33. Qc7+ {[%clk 0:00:12]}  Kf6 {[%clk 0:00:15]} 34. Qxb7 {[%clk 0:00:12]}  Rxb7 {[%clk 0:00:16]} 35. Ne3 {[%clk 0:00:10]}  Nb5 {[%clk 0:00:15]} 36. Nd5+ {[%clk 0:00:09]}  Ke6 {[%clk 0:00:14]} 37. Rd3 {[%clk 0:00:10]}  e4 {[%clk 0:00:14]} 38. fxe4 {[%clk 0:00:10]}  fxe4 {[%clk 0:00:15]} 39. Rdd1 {[%clk 0:00:10]}  Ke5 {[%clk 0:00:14]} 40. Rfe1 {[%clk 0:00:10]}  Nd4 {[%clk 0:00:13]} 41. Ne3 {[%clk 0:00:09]}  d5 {[%clk 0:00:14]} 42. g3 {[%clk 0:00:05]}  Nf5 {[%clk 0:00:14]} 43. Nxd5 {[%clk 0:00:02]}  Rd7 {[%clk 0:00:13]} 44. Nc3 {[%clk 0:00:02]}  Rxd1 {[%clk 0:00:14]} 45. Nxd1 {[%clk 0:00:02]}  e3 {[%clk 0:00:15]} 46. Nxe3 {[%clk 0:00:02]}  Ke4 {[%clk 0:00:16]} 47. Kg2 {[%clk 0:00:02]}  Nxe3+ {[%clk 0:00:16]} 48. Kf2 {[%clk 0:00:03]}  Kd3 {[%clk 0:00:16]} 49. Kf3 {[%clk 0:00:03]}  Nd5 {[%clk 0:00:14]} 50. Re2 {[%clk 0:00:03]}  Nc3 {[%clk 0:00:14]} 51. Re6 {[%clk 0:00:03]}  Nxa2 {[%clk 0:00:14]} 52. Rd6+ {[%clk 0:00:03]}  Kc3 {[%clk 0:00:14]} 53. Rxa6 {[%clk 0:00:04]}  Kxb3 {[%clk 0:00:14]} 54. Ra7 {[%clk 0:00:04]}  h6 {[%clk 0:00:13]} 55. Rg7 {[%clk 0:00:05]}  Nc3 {[%clk 0:00:09]} 56. Rxg6 {[%clk 0:00:05]}  Nd5 {[%clk 0:00:09]} 57. h4 {[%clk 0:00:06]}  Bd2 {[%clk 0:00:08]} 58. Rc6 {[%clk 0:00:06]}  Nb4 {[%clk 0:00:07]} 59. Rc5 {[%clk 0:00:05]}  Nd3 {[%clk 0:00:07]} 60. Rc8 {[%clk 0:00:06]}  Bc3 {[%clk 0:00:07]} 61. Ke4 {[%clk 0:00:06]}  Nb4 {[%clk 0:00:06]} 62. Kf5 {[%clk 0:00:06]}  Be1 {[%clk 0:00:06]} 63. Kg4 {[%clk 0:00:05]}  h5+ {[%clk 0:00:06]} 64. Kh3 {[%clk 0:00:03]}  Bc3 {[%clk 0:00:04]} 65. Re8 {[%clk 0:00:04]}  Kc2 {[%clk 0:00:04]} 66. Re6 {[%clk 0:00:05]}  Nd3 {[%clk 0:00:04]} 67. Rh6 {[%clk 0:00:05]}  Be1 {[%clk 0:00:04]} 68. Rxh5 {[%clk 0:00:05]}  Kd2 {[%clk 0:00:03]} 69. Kg2 {[%clk 0:00:05]}  Ke2 {[%clk 0:00:04]} 70. Rf5 {[%clk 0:00:05]}  Kd2 {[%clk 0:00:05]} 71. Rf7 {[%clk 0:00:04]}  Nc1 {[%clk 0:00:06]} 72. Re7 {[%clk 0:00:05]}  Ne2 {[%clk 0:00:05]} 73. Re8 {[%clk 0:00:06]}  Nd4 {[%clk 0:00:06]} 74. g4 {[%clk 0:00:06]}  Bxh4 {[%clk 0:00:06]} 75. Kh3 {[%clk 0:00:04]}  Bg5 {[%clk 0:00:06]} 76. Re5 {[%clk 0:00:04]}  Be3 {[%clk 0:00:07]} 77. Rd5 {[%clk 0:00:04]}  Ke2 {[%clk 0:00:06]} 78. g5 {[%clk 0:00:05]}  Nf3 {[%clk 0:00:06]} 79. g6 {[%clk 0:00:05]}  Bh6 {[%clk 0:00:03]} 80. Kg4 {[%clk 0:00:05]}  Bg7 {[%clk 0:00:03]} 81. Rd7 {[%clk 0:00:05]}  Be5 {[%clk 0:00:03]} 82. Re7 {[%clk 0:00:05]}  Kd3 {[%clk 0:00:01]} 83. Kf5 {[%clk 0:00:05]}  Bd4 {[%clk 0:00:01]} 84. Kf4 {[%clk 0:00:04]}  Nh4 {[%clk 0:00:01]} 85. Rd7 {[%clk 0:00:04]}  Nxg6+ {[%clk 0:00:01]} 86. Kf5 {[%clk 0:00:05]}  Ne5 {[%clk 0:00:02]} 87. Rd6 {[%clk 0:00:06]}  Nc4 {[%clk 0:00:02]} 88. Rd7 {[%clk 0:00:07]}  Ne3+ {[%clk 0:00:02]} 89. Ke6 {[%clk 0:00:06]}  Nc4 {[%clk 0:00:03]} 90. Rd8 {[%clk 0:00:07]}  Ne3 {[%clk 0:00:04]} 91. Rxd4+ {[%clk 0:00:06]}  Kxd4 {[%clk 0:00:04]} 1/2-1/2


[Site "https://www.chess.com"]

[Event "Titled Tuesday Blitz December 14 2021"]
[White "Nakamura, Hikaru"]
[Black "Bortnyk, Olexandr"]
[WhiteFideId "2016192"]
[BlackFideId "14120828"]
[WhiteElo "2884"]
[BlackElo "2723"]
[Result "1/2-1/2"]
[Round "06"]
[TimeControl "180+1"]
[Date "2021.12.14"]
[WhiteClock "0:00:16"]
[BlackClock "0:00:15"]

1. e4 {[%clk 0:03:00]}  Nf6 {[%clk 0:02:59]} 2. Nc3 {[%clk 0:02:57]}  d6 {[%clk 0:02:59]} 3. d4 {[%clk 0:02:57]}  e5 {[%clk 0:03:00]} 4. Nf3 {[%clk 0:02:56]}  Nbd7 {[%clk 0:03:01]} 5. Bc4 {[%clk 0:02:57]}  Be7 {[%clk 0:03:01]} 6. O-O {[%clk 0:02:57]}  O-O {[%clk 0:03:01]} 7. Qe2 {[%clk 0:02:58]}  c6 {[%clk 0:02:51]} 8. a4 {[%clk 0:02:57]}  a5 {[%clk 0:02:46]} 9. Rd1 {[%clk 0:02:56]}  Qc7 {[%clk 0:02:38]} 10. h3 {[%clk 0:02:56]}  exd4 {[%clk 0:02:31]} 11. Nxd4 {[%clk 0:02:55]}  Nc5 {[%clk 0:02:31]} 12. Nb3 {[%clk 0:02:46]}  Nxb3 {[%clk 0:02:32]} 13. cxb3 {[%clk 0:02:42]}  Be6 {[%clk 0:02:33]} 14. Bf4 {[%clk 0:02:41]}  Nd7 {[%clk 0:02:11]} 15. Nd5 {[%clk 0:02:26]}  Bxd5 {[%clk 0:01:53]} 16. exd5 {[%clk 0:02:27]}  Ne5 {[%clk 0:01:51]} 17. Rac1 {[%clk 0:02:18]}  c5 {[%clk 0:01:38]} 18. Bxe5 {[%clk 0:02:18]}  dxe5 {[%clk 0:01:39]} 19. d6 {[%clk 0:02:19]}  Bxd6 {[%clk 0:01:38]} 20. Rd5 {[%clk 0:02:19]}  Be7 {[%clk 0:01:32]} 21. Rxe5 {[%clk 0:02:11]}  Bf6 {[%clk 0:01:31]} 22. Re4 {[%clk 0:02:10]}  Rad8 {[%clk 0:01:29]} 23. Qf3 {[%clk 0:02:07]}  Rfe8 {[%clk 0:01:25]} 24. Rxe8+ {[%clk 0:02:01]}  Rxe8 {[%clk 0:01:26]} 25. Bb5 {[%clk 0:01:57]}  Bxb2 {[%clk 0:01:20]} 26. Rd1 {[%clk 0:01:53]}  Rd8 {[%clk 0:00:56]} 27. Rxd8+ {[%clk 0:01:49]}  Qxd8 {[%clk 0:00:57]} 28. Qxb7 {[%clk 0:01:49]}  g6 {[%clk 0:00:51]} 29. Bc4 {[%clk 0:01:49]}  Qf6 {[%clk 0:00:43]} 30. Qa8+ {[%clk 0:01:48]}  Kg7 {[%clk 0:00:41]} 31. Qxa5 {[%clk 0:01:47]}  Bc3 {[%clk 0:00:38]} 32. Qc7 {[%clk 0:01:42]}  Be5 {[%clk 0:00:32]} 33. Qb7 {[%clk 0:00:49]}  Bd4 {[%clk 0:00:33]} 34. Qf3 {[%clk 0:00:49]}  Qxf3 {[%clk 0:00:33]} 35. gxf3 {[%clk 0:00:50]}  Bc3 {[%clk 0:00:31]} 36. f4 {[%clk 0:00:49]}  Kf6 {[%clk 0:00:27]} 37. Kg2 {[%clk 0:00:49]}  Ke7 {[%clk 0:00:27]} 38. Kf3 {[%clk 0:00:50]}  f6 {[%clk 0:00:25]} 39. Ke4 {[%clk 0:00:47]}  Kd6 {[%clk 0:00:24]} 40. Bg8 {[%clk 0:00:47]}  h6 {[%clk 0:00:25]} 41. Bh7 {[%clk 0:00:45]}  g5 {[%clk 0:00:24]} 42. Kf5 {[%clk 0:00:45]}  Bd2 {[%clk 0:00:16]} 43. Kxf6 {[%clk 0:00:45]}  Bxf4 {[%clk 0:00:15]} 44. Kg6 {[%clk 0:00:44]}  Bd2 {[%clk 0:00:14]} 45. Bg8 {[%clk 0:00:40]}  Ke5 {[%clk 0:00:14]} 46. b4 {[%clk 0:00:33]}  Bxb4 {[%clk 0:00:12]} 47. Kxh6 {[%clk 0:00:33]}  Kf4 {[%clk 0:00:12]} 48. Kg6 {[%clk 0:00:32]}  c4 {[%clk 0:00:10]} 49. Bxc4 {[%clk 0:00:31]}  Bc5 {[%clk 0:00:11]} 50. f3 {[%clk 0:00:29]}  Bb6 {[%clk 0:00:10]} 51. Be6 {[%clk 0:00:26]}  Kxf3 {[%clk 0:00:06]} 52. Kxg5 {[%clk 0:00:26]}  Bd8+ {[%clk 0:00:07]} 53. Kf5 {[%clk 0:00:23]}  Kg3 {[%clk 0:00:08]} 54. Ke5 {[%clk 0:00:24]}  Kh4 {[%clk 0:00:08]} 55. Bg4 {[%clk 0:00:12]}  Kg5 {[%clk 0:00:08]} 56. Ke4 {[%clk 0:00:12]}  Kh6 {[%clk 0:00:09]} 57. Kf5 {[%clk 0:00:11]}  Kg7 {[%clk 0:00:09]} 58. Ke6 {[%clk 0:00:11]}  Kh8 {[%clk 0:00:09]} 59. Kd7 {[%clk 0:00:12]}  Ba5 {[%clk 0:00:10]} 60. Kc6 {[%clk 0:00:12]}  Be1 {[%clk 0:00:11]} 61. Kb5 {[%clk 0:00:12]}  Bd2 {[%clk 0:00:12]} 62. h4 {[%clk 0:00:12]}  Be1 {[%clk 0:00:12]} 63. h5 {[%clk 0:00:13]}  Bd2 {[%clk 0:00:12]} 64. a5 {[%clk 0:00:14]}  Bxa5 {[%clk 0:00:13]} 65. Kxa5 {[%clk 0:00:15]}  Kg7 {[%clk 0:00:13]} 66. h6+ {[%clk 0:00:16]}  Kh8 {[%clk 0:00:14]} 67. h7 {[%clk 0:00:16]}  Kxh7 {[%clk 0:00:15]} 1/2-1/2


[Site "https://www.chess.com"]

[Event "Titled Tuesday Blitz December 14 2021"]
[White "Nasir, Zehn"]
[Black "Thavandiran, Shiyam"]
[WhiteFideId "2613239"]
[BlackFideId "2605058"]
[WhiteElo "1993"]
[BlackElo "2357"]
[Result "0-1"]
[Round "06"]
[TimeControl "180+1"]
[Date "2021.12.15"]
[WhiteClock "0:00:03"]
[BlackClock "0:00:06"]

1. d4 {[%clk 0:03:00]}  e6 {[%clk 0:02:59]} 2. e4 {[%clk 0:03:00]}  d5 {[%clk 0:02:58]} 3. Nd2 {[%clk 0:03:00]}  Nc6 {[%clk 0:02:56]} 4. Ngf3 {[%clk 0:03:00]}  Nf6 {[%clk 0:02:57]} 5. e5 {[%clk 0:03:00]}  Nd7 {[%clk 0:02:57]} 6. c3 {[%clk 0:03:00]}  f6 {[%clk 0:02:58]} 7. exf6 {[%clk 0:02:58]}  Qxf6 {[%clk 0:02:58]} 8. Bb5 {[%clk 0:02:54]}  e5 {[%clk 0:02:47]} 9. dxe5 {[%clk 0:02:52]}  Ncxe5 {[%clk 0:02:46]} 10. Nxe5 {[%clk 0:02:34]}  Qxe5+ {[%clk 0:02:45]} 11. Be2 {[%clk 0:02:30]}  Bd6 {[%clk 0:02:07]} 12. Nf3 {[%clk 0:02:28]}  Qf5 {[%clk 0:01:52]} 13. Nd4 {[%clk 0:01:40]}  Qf6 {[%clk 0:01:33]} 14. Be3 {[%clk 0:01:32]}  c6 {[%clk 0:01:31]} 15. c4 {[%clk 0:01:18]}  Bb4+ {[%clk 0:01:20]} 16. Bd2 {[%clk 0:01:08]}  Bxd2+ {[%clk 0:00:52]} 17. Qxd2 {[%clk 0:01:09]}  O-O {[%clk 0:00:50]} 18. O-O {[%clk 0:01:02]}  Nb6 {[%clk 0:00:34]} 19. cxd5 {[%clk 0:00:57]}  Nxd5 {[%clk 0:00:35]} 20. Bc4 {[%clk 0:00:54]}  Kh8 {[%clk 0:00:35]} 21. Bxd5 {[%clk 0:00:54]}  cxd5 {[%clk 0:00:36]} 22. Rac1 {[%clk 0:00:46]}  Bd7 {[%clk 0:00:30]} 23. Rc3 {[%clk 0:00:44]}  Rae8 {[%clk 0:00:26]} 24. Rf3 {[%clk 0:00:38]}  Qd6 {[%clk 0:00:25]} 25. Rxf8+ {[%clk 0:00:38]}  Rxf8 {[%clk 0:00:26]} 26. Re1 {[%clk 0:00:33]}  a6 {[%clk 0:00:23]} 27. h3 {[%clk 0:00:29]}  h6 {[%clk 0:00:23]} 28. a3 {[%clk 0:00:22]}  b6 {[%clk 0:00:23]} 29. Ne2 {[%clk 0:00:17]}  Qg6 {[%clk 0:00:14]} 30. Ng3 {[%clk 0:00:15]}  Be6 {[%clk 0:00:12]} 31. Qe3 {[%clk 0:00:14]}  Bg8 {[%clk 0:00:12]} 32. Qd4 {[%clk 0:00:12]}  a5 {[%clk 0:00:11]} 33. Rd1 {[%clk 0:00:11]}  Qg5 {[%clk 0:00:10]} 34. Qd2 {[%clk 0:00:10]}  Qe7 {[%clk 0:00:09]} 35. Nh5 {[%clk 0:00:09]}  Rf5 {[%clk 0:00:08]} 36. Nf4 {[%clk 0:00:09]}  Qg5 {[%clk 0:00:06]} 37. g3 {[%clk 0:00:05]}  Bf7 {[%clk 0:00:07]} 38. Kh2 {[%clk 0:00:04]}  Qf6 {[%clk 0:00:07]} 39. h4 {[%clk 0:00:04]}  g5 {[%clk 0:00:07]} 40. hxg5 {[%clk 0:00:04]}  hxg5 {[%clk 0:00:08]} 41. Nxd5 {[%clk 0:00:02]}  Rxf2+ {[%clk 0:00:08]} 42. Kg1 {[%clk 0:00:02]}  Rxd2 {[%clk 0:00:07]} 43. Rxd2 {[%clk 0:00:03]}  Qd6 {[%clk 0:00:06]} 44. Ne3 {[%clk 0:00:03]}  Qxd2 {[%clk 0:00:06]} 0-1


[Site "https://www.chess.com"]